bitfinex/quotes_BTCUSD_20241004
["timestamp","ask_amount","ask_price","bid_price","bid_amount"]
[1728021965000,0.326631,61231.0,61226.0,0.163328]
[1728021965264,0.163321,61229.0,61226.0,0.163328]
[1728021966257,0.163318,61230.0,61227.0,0.163326]
[1728021966491,0.0774,61233.0,61219.0,0.55512005]
[1728021966492,0.24520421,61228.0,61226.0,0.001]
[1728021966621,0.163327,61227.0,61226.0,0.001]
[1728021967107,0.163327,61227.0,61226.0,0.00796499]
[1728021967343,0.163327,61227.0,61226.0,0.001]
[1728021967821,0.163327,61227.0,61226.0,0.00796499]
[1728021968303,0.163327,61227.0,61226.0,0.00696499]
[1728021968539,0.163331,61226.0,61222.0,0.163338]
[1728021968745,0.326655,61227.0,61222.0,0.163338]
[1728021968995,0.163334,61224.0,61221.0,0.000819]
[1728021969283,0.326659,61226.0,61213.0,0.326724]
[1728021969284,0.24520421,61225.0,61213.0,0.326724]
[1728021969513,0.0932,61232.0,61209.0,0.0922]
[1728021969514,0.163346,61220.0,61209.0,0.0922]
[1728021969760,0.404073,61224.0,61209.0,0.0922]
[1728021969761,0.163359,61215.0,61212.0,0.163365]
[1728021969995,0.32671,61217.0,61212.0,0.163365]
[1728021970235,0.163359,61215.0,61211.0,0.163368]
[1728021970491,0.32671,61217.0,61210.0,0.32674]
[1728021970725,0.326698,61219.0,61211.0,0.1]
[1728021970985,0.163354,61217.0,61213.0,0.163362]
[1728021971216,0.326707,61217.0,61211.0,0.1]
[1728021971444,0.326698,61219.0,61212.0,0.326732]
[1728021971702,0.32260421,61224.0,61212.0,0.22842905]
[1728021971936,0.32260421,61224.0,61211.0,0.1]
[1728021971937,0.24520421,61224.0,61223.0,0.163337]
[1728021972189,0.24520421,61224.0,61220.0,0.22842905]
[1728021972190,0.24520421,61224.0,61222.0,0.163339]
[1728021972424,0.163327,61227.0,61223.0,0.163335]
[1728021972665,0.326628,61232.0,61224.0,0.22842905]
[1728021972914,0.24520421,61246.0,61220.0,0.22842905]
[1728021972915,0.24520421,61230.0,61220.0,0.22842905]
[1728021973169,0.002,61224.0,61223.0,0.163337]
[1728021973420,0.404023,61233.0,61221.0,0.326683]
[1728021973421,0.0774,61233.0,61221.0,0.326683]
[1728021973651,0.005,61227.0,61226.0,0.163328]
[1728021974110,0.005,61227.0,61225.0,0.163331]
[1728021974602,0.005,61227.0,61226.0,0.163329]
[1728021974908,0.005,61227.0,61226.0,0.17031729]
[1728021975144,0.163321,61229.0,61226.0,0.17031729]
[1728021976124,0.163321,61229.0,61226.0,0.00698829]
[1728021976839,0.094838,61234.0,61226.0,0.00698829]
[1728021977063,0.163326,61227.0,61223.0,0.14696062]
[1728021978030,0.163326,61227.0,61224.0,0.163334]
[1728021978280,0.163326,61227.0,61223.0,0.163336]
[1728021978515,0.0774,61226.0,61223.0,0.163336]
[1728021978739,0.0774,61226.0,61224.0,0.163334]
[1728021978970,0.0774,61226.0,61224.0,0.163333]
[1728021979662,0.0814,61226.0,61224.0,0.163333]
[1728021979923,0.0794,61226.0,61225.0,0.163331]
[1728021980145,0.0794,61226.0,61224.0,0.163333]
[1728021980146,0.0834,61226.0,61224.0,0.163333]
[1728021980585,0.0834,61226.0,61223.0,0.326674]
[1728021980815,0.0834,61226.0,61225.0,0.163331]
[1728021981044,0.0834,61226.0,61223.0,0.490008]
[1728021981275,0.0814,61226.0,61223.0,0.490008]
[1728021981503,0.0814,61226.0,61224.0,0.163334]
[1728021981504,0.0794,61226.0,61224.0,0.163334]
[1728021981755,0.0834,61226.0,61225.0,0.163331]
[1728021981982,0.004,61226.0,61225.0,0.163331]
[1728021982210,0.006,61226.0,61225.0,0.163331]
[1728021982478,0.002,61226.0,61225.0,0.163331]
[1728021982714,0.001638,61234.0,61224.0,0.326669]
[1728021982945,0.004,61226.0,61225.0,0.163331]
[1728021983181,0.004,61226.0,61225.0,0.39176005]
[1728021983182,0.002,61226.0,61225.0,0.39176005]
[1728021983409,0.003,61226.0,61225.0,0.39276005]
[1728021984554,0.001,61226.0,61225.0,0.39276005]
[1728021985527,0.002,61226.0,61225.0,0.39276005]
[1728021986006,0.002,61226.0,61225.0,0.55594676]
[1728021986246,0.002,61226.0,61225.0,0.67114676]
[1728021986761,0.002,61226.0,61225.0,0.72001312]
[1728021986985,0.002,61226.0,61225.0,0.8444463]
[1728021987211,0.002,61226.0,61225.0,0.8464463]
[1728021987451,0.002,61226.0,61225.0,0.77814676]
[1728021987964,0.002,61226.0,61225.0,0.87587948]
[1728021988458,0.002,61226.0,61225.0,0.95237948]
[1728021988707,0.002,61226.0,61225.0,0.85464676]
[1728021988933,0.001638,61234.0,61233.0,0.49173905]
[1728021989166,0.001638,61234.0,61233.0,0.65492576]
[1728021989397,0.001638,61234.0,61233.0,0.72824051]
[1728021989630,0.001638,61234.0,61233.0,0.65492576]
[1728021989858,0.001638,61234.0,61233.0,0.66187633]
[1728021990132,0.001638,61234.0,61233.0,0.73620115]
[1728021990133,0.002638,61234.0,61233.0,0.73620115]
[1728021990357,0.001638,61234.0,61233.0,0.71076044]
[1728021990588,0.001638,61234.0,61233.0,0.66187633]
[1728021990842,0.002638,61234.0,61233.0,0.66287633]
[1728021991356,0.003638,61234.0,61233.0,0.66887633]
[1728021991808,0.003638,61234.0,61233.0,0.66287633]
[1728021991809,0.002638,61234.0,61233.0,0.66287633]
[1728021992047,0.003638,61234.0,61233.0,0.67087633]
[1728021993625,0.003638,61234.0,61233.0,0.74420115]
[1728021994496,0.003638,61234.0,61233.0,0.67511495]
[1728021994712,0.003638,61234.0,61233.0,0.74843977]
[1728021995392,0.003638,61234.0,61233.0,0.67511495]
[1728021995601,0.003638,61234.0,61233.0,0.74843977]
[1728021996640,0.003638,61234.0,61233.0,0.67511495]
[1728021998493,0.003638,61234.0,61233.0,0.69517573]
[1728021998716,0.003638,61234.0,61233.0,0.01595057]
[1728021998717,0.176238,61234.0,61233.0,0.01595057]
[1728021998936,0.339545,61234.0,61233.0,0.01595057]
[1728021999148,0.339545,61234.0,61233.0,0.01940334]
[1728021999586,0.338545,61234.0,61233.0,0.01840334]
[1728021999814,0.175238,61234.0,61233.0,0.012]
[1728022000024,0.338545,61234.0,61233.0,0.012]
[1728022000238,0.338545,61234.0,61233.0,0.008]
[1728022000471,0.337545,61234.0,61233.0,0.01040335]
[1728022000681,0.338545,61234.0,61233.0,0.007]
[1728022001117,0.338545,61234.0,61227.0,0.000819]
[1728022001118,0.163318,61230.0,61227.0,0.000819]
[1728022001339,0.163317,61231.0,61227.0,0.000819]
[1728022001574,0.500857,61234.0,61227.0,0.000819]
[1728022001802,0.326622,61233.0,61228.0,0.163323]
[1728022002032,0.326622,61233.0,61227.0,0.264144]
[1728022002266,0.163319,61230.0,61227.0,0.264144]
[1728022002527,0.24520421,61229.0,61227.0,0.000819]
[1728022002743,0.163323,61228.0,61227.0,0.003819]
[1728022003177,0.335923,61228.0,61227.0,0.000819]
[1728022003820,0.335923,61228.0,61218.0,0.326698]
[1728022003821,0.163342,61221.0,61218.0,0.16335]
[1728022004029,0.326677,61223.0,61217.0,0.326702]
[1728022004030,0.16334,61222.0,61217.0,0.326702]
[1728022004247,0.16334,61222.0,61219.0,0.163347]
[1728022004459,0.16334,61222.0,61218.0,0.163348]
[1728022004672,0.163337,61223.0,61219.0,0.163345]
[1728022004885,0.163337,61223.0,61220.0,0.163345]
[1728022005101,0.163341,61222.0,61219.0,0.17381129]
[1728022005566,0.163337,61223.0,61220.0,0.17380658]
[1728022005788,0.163333,61225.0,61222.0,0.163339]
[1728022006014,0.1726,61228.0,61227.0,0.163326]
[1728022006015,0.19820219,61228.0,61227.0,0.163326]
[1728022006232,0.19820219,61228.0,61226.0,0.163328]
[1728022006449,0.10540219,61228.0,61227.0,0.17377756]
[1728022006701,0.0798,61228.0,61227.0,0.17377756]
[1728022007567,0.0828,61228.0,61227.0,0.17377756]
[1728022008206,0.0798,61228.0,61227.0,0.17377756]
[1728022008624,0.0838,61228.0,61227.0,0.17377756]
[1728022008833,0.0798,61228.0,61227.0,0.17377756]
[1728022009278,0.0808,61228.0,61227.0,0.17377756]
[1728022013504,0.08244,61228.0,61227.0,0.17377756]
[1728022018038,0.00264,61228.0,61227.0,0.17377756]
[1728022019016,0.00164,61228.0,61227.0,0.17377756]
[1728022019244,0.00164,61228.0,61227.0,0.17777756]
[1728022019961,0.00164,61228.0,61227.0,0.01445156]
[1728022020206,0.338663,61228.0,61227.0,0.01845156]
[1728022020680,0.338663,61228.0,61227.0,0.008]
[1728022020988,0.338663,61228.0,61227.0,0.004]
[1728022021216,0.163339,61222.0,61221.0,0.00082]
[1728022021676,0.163339,61222.0,61221.0,0.01827617]
[1728022021933,0.163339,61222.0,61221.0,0.00082]
[1728022022453,0.490015,61223.0,61221.0,0.01827617]
[1728022022704,0.490015,61223.0,61221.0,0.00082]
[1728022022931,0.163339,61223.0,61222.0,0.01745331]
[1728022023404,0.0803,61223.0,61221.0,0.00082]
[1728022023625,0.163339,61222.0,61221.0,0.00082]
[1728022024779,0.163339,61222.0,61221.0,0.00182]
[1728022025294,0.0803,61223.0,61221.0,0.165161]
[1728022025531,0.166339,61222.0,61221.0,0.00182]
[1728022025983,0.166339,61222.0,61221.0,0.00082]
[1728022026205,0.005,61222.0,61221.0,0.00082]
[1728022026446,0.002,61222.0,61221.0,0.00082]
[1728022026683,0.243637,61223.0,61221.0,0.00082]
[1728022026927,0.0803,61223.0,61221.0,0.164162]
[1728022027149,0.17364,61228.0,61226.0,0.163328]
[1728022027398,0.17364,61228.0,61223.0,0.163334]
[1728022027399,0.163329,61226.0,61223.0,0.163334]
[1728022027647,0.24520421,61227.0,61224.0,0.163333]
[1728022027648,0.163326,61227.0,61224.0,0.163333]
[1728022028115,0.163329,61226.0,61223.0,0.163336]
[1728022029117,0.163333,61225.0,61224.0,0.001]
[1728022029376,0.163333,61225.0,61222.0,0.163339]
[1728022030061,0.167329,61226.0,61223.0,0.163335]
[1728022030517,0.002,61225.0,61223.0,0.163335]
[1728022030956,0.167329,61226.0,61223.0,0.163335]
[1728022031231,0.170329,61226.0,61223.0,0.163335]
[1728022031677,0.166329,61226.0,61223.0,0.163335]
[1728022031906,0.003,61225.0,61223.0,0.163335]
[1728022032133,0.166329,61226.0,61223.0,0.163335]
[1728022032358,0.163329,61226.0,61223.0,0.163335]
[1728022032616,0.167329,61226.0,61223.0,0.163335]
[1728022032833,0.002,61225.0,61223.0,0.163335]
[1728022033059,0.005,61225.0,61223.0,0.163335]
[1728022033286,0.003,61225.0,61223.0,0.163335]
[1728022034436,0.002,61225.0,61223.0,0.163335]
[1728022035144,0.002,61225.0,61224.0,0.01748868]
[1728022035374,0.002,61225.0,61224.0,0.18082268]
[1728022035639,0.002,61225.0,61224.0,0.163334]
[1728022035867,0.005,61225.0,61224.0,0.18082268]
[1728022036094,0.003,61225.0,61224.0,0.18082268]
[1728022036387,0.008,61225.0,61224.0,0.18082268]
[1728022036838,0.006,61225.0,61224.0,0.18082268]
[1728022037320,0.006,61225.0,61224.0,0.18382268]
[1728022037542,0.08024,61228.0,61224.0,0.02048868]
[1728022037762,0.08024,61228.0,61226.0,0.163329]
[1728022038229,0.08024,61228.0,61227.0,0.0174801]
[1728022038944,0.08124,61228.0,61227.0,0.0174801]
[1728022039610,0.08224,61228.0,61227.0,0.0174801]
[1728022041720,0.08224,61228.0,61227.0,0.1808061]
[1728022042182,0.00364,61228.0,61227.0,0.1808061]
[1728022042405,0.00364,61228.0,61227.0,0.18192547]
[1728022042650,0.00364,61228.0,61227.0,0.18407227]
[1728022042898,0.00164,61228.0,61227.0,0.18407227]
[1728022043136,0.00164,61228.0,61227.0,0.18707227]
[1728022043366,0.00164,61228.0,61227.0,0.23597902]
[1728022043631,0.00164,61228.0,61227.0,0.46133913]
[1728022043847,0.00264,61228.0,61227.0,0.46507296]
[1728022044349,0.00264,61228.0,61227.0,0.48952634]
[1728022044808,0.00264,61228.0,61227.0,0.49252634]
[1728022045057,0.00264,61228.0,61227.0,0.48952634]
[1728022045279,0.00264,61228.0,61227.0,0.42028381]
[1728022045523,0.00364,61228.0,61227.0,0.47628458]
[1728022055996,0.00364,61228.0,61227.0,0.47627698]
[1728022059436,0.00364,61228.0,61227.0,0.63946369]
[1728022059648,0.00364,61228.0,61227.0,0.88785686]
[1728022059881,0.00364,61228.0,61227.0,0.81287052]
[1728022063861,0.00364,61228.0,61227.0,0.81487052]
[1728022065673,0.00364,61228.0,61227.0,0.73632746]
[1728022067270,0.00364,61228.0,61227.0,0.74132746]
[1728022070674,0.00364,61228.0,61227.0,0.73932746]
[1728022077906,0.00364,61228.0,61227.0,0.63992746]
[1728022083640,0.00364,61228.0,61227.0,0.64192746]
[1728022083857,0.00364,61228.0,61227.0,0.63992746]
[1728022084322,0.00364,61228.0,61227.0,0.64192746]
[1728022087449,0.00364,61228.0,61227.0,0.63992746]
[1728022089289,0.00364,61228.0,61227.0,0.64192746]
[1728022089743,0.00364,61228.0,61227.0,0.63992746]
[1728022090394,0.00336607,61228.0,61227.0,0.7008082]
[1728022090625,0.00309229,61228.0,61227.0,0.7008082]
[1728022093238,0.00309229,61228.0,61227.0,0.84772633]
[1728022093469,0.00309229,61228.0,61227.0,0.7008082]
[1728022093682,0.00309229,61228.0,61227.0,0.84775322]
[1728022093883,0.00309229,61228.0,61227.0,0.7008082]
[1728022094327,0.00309229,61228.0,61227.0,0.84775322]
[1728022095687,0.00309229,61228.0,61227.0,0.84777363]
[1728022098401,0.18309229,61228.0,61227.0,0.52299115]
[1728022098663,0.18309229,61228.0,61227.0,0.61192746]
[1728022098881,0.18309229,61228.0,61227.0,0.68543982]
[1728022099319,0.18309229,61228.0,61227.0,0.52225576]
[1728022099538,0.18309229,61228.0,61227.0,0.37243871]
[1728022099763,0.18309229,61228.0,61227.0,0.49775159]
[1728022100194,0.18309229,61228.0,61227.0,0.44874075]
[1728022100632,0.18309229,61228.0,61227.0,0.49775124]
[1728022101275,0.18309229,61228.0,61227.0,0.44874075]
[1728022101716,0.18309229,61228.0,61227.0,0.52225576]
[1728022101933,0.18309229,61228.0,61227.0,0.49775138]
[1728022102390,0.18309229,61228.0,61227.0,0.4977508]
[1728022102825,0.18309229,61228.0,61227.0,0.44874075]
[1728022103273,0.18309229,61228.0,61227.0,0.52226102]
[1728022103553,0.18309229,61228.0,61227.0,0.44874075]
[1728022103996,0.18309229,61228.0,61227.0,0.52226102]
[1728022106193,0.18309229,61228.0,61227.0,0.52308002]
[1728022106394,0.18309229,61228.0,61227.0,0.44955975]
[1728022107051,0.18309229,61228.0,61227.0,0.52308002]
[1728022107262,0.18309229,61228.0,61227.0,0.44955975]
[1728022108577,0.18309229,61228.0,61227.0,0.49855567]
[1728022109247,0.18309229,61228.0,61227.0,0.44955975]
[1728022109472,0.18309229,61228.0,61227.0,0.49025261]
[1728022109923,0.18309229,61228.0,61227.0,0.34043556]
[1728022110174,0.18309229,61228.0,61227.0,0.49025261]
[1728022111119,0.18309229,61228.0,61227.0,0.4902462]
[1728022111567,0.18309229,61228.0,61227.0,0.44125785]
[1728022112003,0.18309229,61228.0,61227.0,0.51477812]
[1728022112221,0.18309229,61228.0,61227.0,0.44125785]
[1728022112463,0.18309229,61228.0,61227.0,0.51473274]
[1728022112933,0.18309229,61228.0,61227.0,0.44125785]
[1728022115184,0.08549229,61228.0,61227.0,0.44125785]
[1728022115407,0.08549229,61228.0,61227.0,0.51473226]
[1728022115625,0.08549229,61228.0,61227.0,0.44125785]
[1728022115848,0.08476629,61228.0,61227.0,0.44125785]
[1728022116075,0.08460236,61228.0,61227.0,0.44125785]
[1728022117214,0.08460236,61228.0,61227.0,0.51473208]
[1728022117438,0.08460236,61228.0,61227.0,0.44125785]
[1728022117689,0.08460236,61228.0,61227.0,0.51473255]
[1728022117946,0.08460236,61228.0,61227.0,0.51473204]
[1728022118197,0.08460236,61228.0,61227.0,0.51473319]
[1728022118434,0.08460236,61228.0,61227.0,0.44125785]
[1728022120065,0.08460236,61228.0,61227.0,0.53922497]
[1728022120342,0.00220236,61228.0,61227.0,0.53922497]
[1728022120575,0.00220236,61228.0,61227.0,0.70241168]
[1728022120813,0.00220236,61228.0,61227.0,0.60444456]
[1728022125914,0.00220236,61228.0,61227.0,0.60644456]
[1728022126360,0.00220236,61228.0,61227.0,0.60444456]
[1728022127266,0.00220236,61228.0,61227.0,0.60050524]
[1728022127492,0.00220236,61228.0,61227.0,0.44641068]
[1728022127724,0.00220236,61228.0,61227.0,0.60273668]
[1728022129417,0.00120236,61228.0,61227.0,0.60273668]
[1728022130119,0.00220236,61228.0,61227.0,0.61073668]
[1728022132179,0.00220236,61228.0,61227.0,0.63573668]
[1728022132621,0.00220236,61228.0,61227.0,0.64073668]
[1728022133981,0.00220236,61228.0,61227.0,0.78770668]
[1728022134200,0.00220236,61228.0,61227.0,0.84859156]
[1728022134438,0.00220236,61228.0,61227.0,0.78770668]
[1728022135082,0.00220236,61228.0,61227.0,0.88240668]
[1728022136819,0.00220236,61228.0,61227.0,0.73343668]
[1728022137029,0.00220236,61228.0,61227.0,0.63873668]
[1728022137517,0.00220236,61228.0,61227.0,0.78571696]
[1728022137957,0.00220236,61228.0,61227.0,0.78571566]
[1728022138866,0.00220236,61228.0,61227.0,0.76271566]
[1728022139294,0.00220236,61228.0,61227.0,0.76471566]
[1728022139640,0.00220236,61228.0,61227.0,0.76271566]
[1728022140398,0.00220236,61228.0,61227.0,0.76271714]
[1728022141096,0.00220236,61228.0,61227.0,0.76271652]
[1728022141323,0.00220236,61228.0,61227.0,0.76471652]
[1728022141548,0.00220236,61228.0,61227.0,0.61773668]
[1728022141771,0.00220236,61228.0,61227.0,0.7627161]
[1728022142928,0.00220236,61228.0,61227.0,0.67660676]
[1728022143157,0.00220236,61228.0,61227.0,0.67860676]
[1728022143604,0.00220236,61228.0,61227.0,0.70160676]
[1728022145901,0.00220236,61228.0,61227.0,0.69960676]
[1728022146374,0.00220236,61228.0,61227.0,0.69660676]
[1728022146841,0.0954,61240.0,61227.0,0.69660676]
[1728022146842,0.001638,61250.0,61235.0,0.002]
[1728022147072,0.0824,61243.0,61242.0,0.21226593]
[1728022147308,0.0824,61243.0,61242.0,0.163286]
[1728022147557,0.0824,61243.0,61242.0,0.17769857]
[1728022148223,0.0824,61243.0,61242.0,0.32751562]
[1728022148681,0.0824,61243.0,61242.0,0.17769857]
[1728022148925,0.0824,61243.0,61242.0,0.06738309]
[1728022149155,0.1806,61243.0,61242.0,0.01841257]
[1728022149398,0.1806,61243.0,61242.0,0.18569857]
[1728022150137,0.1806,61243.0,61242.0,0.18169857]
[1728022150627,0.1806,61243.0,61242.0,0.17769857]
[1728022152528,0.1806,61243.0,61242.0,0.18069857]
[1728022152795,0.1836,61243.0,61242.0,0.18069857]
[1728022153511,0.182238,61243.0,61242.0,0.18069857]
[1728022153900,0.182238,61243.0,61242.0,0.18169857]
[1728022154130,0.182238,61243.0,61242.0,0.17869857]
[1728022154333,0.182238,61243.0,61242.0,0.18169857]
[1728022155135,0.182238,61243.0,61242.0,0.18069857]
[1728022155397,0.182238,61243.0,61242.0,0.18369857]
[1728022161508,0.182238,61243.0,61242.0,0.23266541]
[1728022162177,0.182238,61243.0,61242.0,0.18369857]
[1728022162304,0.182238,61243.0,61242.0,0.23266541]
[1728022168402,0.182238,61243.0,61242.0,0.18369857]
[1728022172380,0.182238,61243.0,61242.0,0.25719755]
[1728022173748,0.182238,61243.0,61242.0,0.09391155]
[1728022173968,0.182238,61243.0,61242.0,0.25719755]
[1728022175349,0.345521,61243.0,61242.0,0.09391155]
[1728022175629,0.345521,61243.0,61242.0,0.02041257]
[1728022176105,0.182238,61243.0,61233.0,0.04901702]
[1728022176323,0.338807,61234.0,61233.0,0.04901702]
[1728022176546,0.338807,61234.0,61232.0,0.04901702]
[1728022176547,0.16331,61233.0,61232.0,0.04901702]
[1728022176979,0.163313,61233.0,61231.0,0.04901702]
[1728022177196,0.1755,61234.0,61231.0,0.04901702]
[1728022177882,0.338809,61234.0,61232.0,0.001]
[1728022179027,0.163313,61232.0,61231.0,0.04901702]
[1728022179260,0.24520421,61233.0,61231.0,0.04901702]
[1728022179480,0.338813,61232.0,61231.0,0.004]
[1728022179970,0.338813,61232.0,61231.0,0.002]
[1728022180208,0.338813,61232.0,61231.0,0.006]
[1728022180872,0.338813,61232.0,61231.0,0.004]
[1728022181114,0.163321,61229.0,61228.0,0.000819]
[1728022181334,0.338821,61229.0,61228.0,0.000819]
[1728022182455,0.338821,61229.0,61228.0,0.003819]
[1728022183390,0.338821,61229.0,61228.0,0.006819]
[1728022184300,0.338821,61229.0,61228.0,0.02125302]
[1728022184759,0.338821,61229.0,61228.0,0.006819]
[1728022185219,0.338821,61229.0,61228.0,0.02125302]
[1728022189152,0.338821,61229.0,61228.0,0.02125302]
[1728022194697,0.338821,61229.0,61228.0,0.006819]
[1728022194919,0.338821,61229.0,61228.0,0.02135502]
[1728022197114,0.1755,61229.0,61228.0,0.02135502]
[1728022200533,0.24520421,61235.0,61228.0,0.49781707]
[1728022200534,0.0954,61235.0,61228.0,0.49781707]
[1728022200749,0.24520421,61234.0,61229.0,0.16332]
[1728022200961,0.24520421,61234.0,61229.0,0.17757608]
[1728022201423,0.0954,61235.0,61229.0,0.17757608]
[1728022202109,0.002,61234.0,61230.0,0.163316]
[1728022202326,0.0984,61235.0,61230.0,0.163316]
[1728022202327,0.0984,61235.0,61231.0,0.47644805]
[1728022202541,0.0984,61235.0,61233.0,0.163309]
[1728022202786,0.006,61235.0,61234.0,0.31312405]
[1728022203013,0.006,61235.0,61234.0,0.32379865]
[1728022203244,0.003,61235.0,61234.0,0.32379865]
[1728022203472,0.003,61235.0,61234.0,0.32735685]
[1728022203906,0.0755,61241.0,61237.0,0.163297]
[1728022204118,0.0755,61241.0,61239.0,0.163294]
[1728022204619,0.0755,61241.0,61240.0,0.01421111]
[1728022204834,0.0755,61241.0,61240.0,0.17750211]
[1728022205048,0.0755,61241.0,61240.0,0.31310805]
[1728022205262,0.097038,61243.0,61242.0,0.163286]
[1728022205892,0.097038,61243.0,61242.0,0.17749139]
[1728022206324,0.001638,61243.0,61242.0,0.17749139]
[1728022207057,0.003638,61243.0,61242.0,0.17749139]
[1728022208139,0.003638,61243.0,61242.0,0.18249139]
[1728022209007,0.001638,61243.0,61242.0,0.18249139]
[1728022209221,0.001638,61243.0,61242.0,0.18649139]
[1728022209860,0.001638,61243.0,61242.0,0.18249139]
[1728022210081,0.001638,61243.0,61242.0,0.3516781]
[1728022219680,0.001638,61243.0,61242.0,0.4500781]
[1728022219901,0.001638,61243.0,61242.0,0.49895692]
[1728022220366,0.001638,61243.0,61242.0,0.57485692]
[1728022220850,0.001638,61243.0,61242.0,0.49895692]
[1728022221100,0.001638,61243.0,61242.0,0.4500781]
[1728022221345,0.001638,61243.0,61242.0,0.3516781]
[1728022231937,0.001638,61243.0,61242.0,0.34499678]
[1728022234288,0.001638,61243.0,61242.0,0.49481383]
[1728022238254,0.001638,61243.0,61242.0,0.54365442]
[1728022238685,0.001638,61243.0,61242.0,0.49481383]
[1728022239309,0.001638,61243.0,61242.0,0.54365442]
[1728022241468,0.001638,61243.0,61242.0,0.49481383]
[1728022242398,0.001638,61243.0,61242.0,0.56813089]
[1728022243260,0.001638,61243.0,61242.0,0.49481383]
[1728022243472,0.001638,61243.0,61242.0,0.56816638]
[1728022244340,0.001638,61243.0,61242.0,0.49481383]
[1728022245224,0.001638,61243.0,61242.0,0.59256991]
[1728022246311,0.001638,61243.0,61242.0,0.49481383]
[1728022246555,0.001638,61243.0,61242.0,0.61700893]
[1728022247475,0.001638,61243.0,61242.0,0.49481383]
[1728022248379,0.001638,61243.0,61242.0,0.61719942]
[1728022248618,0.001638,61243.0,61242.0,0.49481383]
[1728022251378,0.001638,61243.0,61242.0,0.65574591]
[1728022251600,0.001638,61243.0,61242.0,0.80238003]
[1728022253465,0.001638,61243.0,61242.0,0.65574591]
[1728022254378,0.001638,61243.0,61242.0,0.65774591]
[1728022256213,0.001638,61243.0,61242.0,0.65574591]
[1728022256427,0.001638,61243.0,61242.0,0.65774591]
[1728022258543,0.001638,61243.0,61242.0,0.75624591]
[1728022258792,0.001638,61243.0,61242.0,0.75424591]
[1728022258981,0.001638,61243.0,61242.0,0.75624591]
[1728022259256,0.001638,61243.0,61242.0,0.75024591]
[1728022259502,0.002638,61243.0,61242.0,0.76224591]
[1728022260220,0.001638,61243.0,61242.0,0.74524591]
[1728022260438,0.002638,61243.0,61242.0,0.77124591]
[1728022260654,0.002638,61243.0,61242.0,0.75924591]
[1728022260840,0.002638,61243.0,61242.0,0.75724591]
[1728022261048,0.002638,61243.0,61242.0,0.67274591]
[1728022263957,0.002638,61243.0,61242.0,0.52292886]
[1728022264183,0.002638,61243.0,61242.0,0.67274591]
[1728022264410,0.180438,61243.0,61242.0,0.67274591]
[1728022264861,0.180438,61243.0,61242.0,0.75895827]
[1728022265094,0.180438,61243.0,61242.0,0.61181383]
[1728022265328,0.180438,61243.0,61242.0,0.75896024]
[1728022265540,0.180438,61243.0,61242.0,0.61181383]
[1728022275598,0.083138,61243.0,61242.0,0.61181383]
[1728022275820,0.002638,61243.0,61242.0,0.75896037]
[1728022276562,0.002638,61243.0,61242.0,0.61181383]
[1728022277637,0.002638,61243.0,61242.0,0.6727355]
[1728022279252,0.002638,61243.0,61242.0,0.61181383]
[1728022285967,0.002638,61243.0,61242.0,0.67273551]
[1728022288932,0.002638,61243.0,61242.0,0.69773551]
[1728022289156,0.002638,61243.0,61242.0,0.79683551]
[1728022289413,0.002638,61243.0,61242.0,1.0140951]
[1728022292909,0.002638,61243.0,61242.0,0.80183551]
[1728022293361,0.002638,61243.0,61242.0,1.01899941]
[1728022294058,0.002638,61243.0,61242.0,0.86918236]
[1728022294298,0.002638,61243.0,61242.0,1.01899941]
[1728022297664,0.0766,61254.0,61252.0,0.163259]
[1728022297895,0.0766,61254.0,61252.0,0.32826951]
[1728022298125,0.0766,61254.0,61252.0,0.48097364]
[1728022298365,0.0766,61254.0,61252.0,0.3339451]
[1728022298605,0.0766,61254.0,61252.0,0.48097364]
[1728022299302,0.0766,61254.0,61252.0,0.3339451]
[1728022299535,0.0766,61254.0,61252.0,0.3389451]
[1728022299800,0.001638,61256.0,61252.0,0.3389451]
[1728022300475,0.001638,61256.0,61252.0,0.3439451]
[1728022302649,0.001638,61256.0,61252.0,0.4439451]
[1728022304265,0.001638,61256.0,61252.0,0.4459451]
[1728022304723,0.0909,61261.0,61254.0,0.002]
[1728022304950,0.0763,61262.0,61261.0,0.163235]
[1728022305171,0.0763,61262.0,61261.0,0.26857752]
[1728022305616,0.0763,61262.0,61261.0,0.17070271]
[1728022306371,0.0763,61262.0,61261.0,0.26853203]
[1728022306605,0.0783,61262.0,61261.0,0.26853203]
[1728022307306,0.0783,61262.0,61261.0,0.17070271]
[1728022309107,0.0783,61262.0,61261.0,0.2440378]
[1728022309788,0.002,61262.0,61261.0,0.50722451]
[1728022310026,0.002,61262.0,61261.0,0.55609195]
[1728022310498,0.078,61269.0,61264.0,0.326453]
[1728022310722,0.078,61269.0,61268.0,0.263217]
[1728022310946,0.32320421,61273.0,61272.0,0.163206]
[1728022311176,0.32320421,61273.0,61272.0,0.48412286]
[1728022311426,0.078,61273.0,61272.0,0.48676056]
[1728022312853,0.078,61273.0,61272.0,0.49776056]
[1728022313072,0.078,61273.0,61272.0,0.50976056]
[1728022315465,0.073,61273.0,61272.0,0.50976056]
[1728022316572,0.074638,61273.0,61272.0,0.50976056]
[1728022317420,0.074638,61273.0,61272.0,0.35994351]
[1728022317632,0.074638,61273.0,61272.0,0.50976056]
[1728022319239,0.074638,61273.0,61272.0,0.49876056]
[1728022319453,0.168438,61273.0,61272.0,0.34794351]
[1728022319652,0.168438,61273.0,61272.0,0.49776056]
[1728022319852,0.168438,61273.0,61272.0,0.50976056]
[1728022320270,0.168438,61273.0,61272.0,0.49776056]
[1728022320428,0.168438,61273.0,61272.0,0.50976056]
[1728022320837,0.168438,61273.0,61272.0,0.49876056]
[1728022321241,0.168438,61273.0,61272.0,0.50976056]
[1728022323152,0.168438,61273.0,61272.0,0.35994351]
[1728022323389,0.331642,61273.0,61272.0,0.0335508]
[1728022323600,0.331642,61273.0,61272.0,0.0256377]
[1728022323817,0.331642,61273.0,61272.0,0.023]
[1728022324509,0.331642,61273.0,61272.0,0.012]
[1728022325440,0.163217,61268.0,61265.0,0.163225]
[1728022325659,0.1693,61267.0,61265.0,0.163225]
[1728022325901,0.0783,61266.0,61265.0,0.163225]